bitfinex/quotes_SOLUSD_20250811
["timestamp","ask_amount","ask_price","bid_price","bid_amount"]
[1754928740464,64.80406581,181.23,181.22,0.06]
[1754928740633,74.10183552,181.23,181.22,0.06]
[1754928740968,15.10621557,181.22,181.2,1e-08]
[1754928741167,41.10621557,181.19,181.15,0.06]
[1754928741336,24.40398528,181.16,181.15,0.06]
[1754928741540,0.46,181.18,181.15,0.06]
[1754928741761,53.01776971,181.17,181.15,0.06]
[1754928741945,24.86398528,181.16,181.15,0.06]
[1754928742135,9.75776971,181.16,181.15,0.06]
[1754928742456,30.63396761,181.16,181.15,0.06]
[1754928743167,44.43392345,181.16,181.01,60.302373]
[1754928743334,9.29776971,181.08,181.03,9.29776971]
[1754928743544,9.29776971,181.08,181.04,0.72]
[1754928743853,9.29776971,181.05,181.01,0.72]
[1754928744376,14.82094177,181.06,181.01,9.29776971]
[1754928744540,14.82094177,181.06,181.02,0.72]
[1754928744735,5.52317206,181.06,180.99,5.52489089]
[1754928744936,140.0,181.06,181.04,9.29776971]
[1754928745156,149.29776971,181.06,181.0,0.72]
[1754928745461,9.29776971,181.05,181.0,0.72]
[1754928745666,140.0,181.06,180.97,0.72]
[1754928745667,9.29776971,181.02,180.97,0.72]
[1754928745836,52.99776971,181.04,180.99,9.29776971]
[1754928746031,43.7,181.04,181.0,0.72]
[1754928746238,9.29776971,181.04,181.0,0.72]
[1754928746459,5.5239463,181.03,181.0,0.72]
[1754928746773,14.82146213,181.04,181.0,0.72]
[1754928747069,14.82146213,181.04,180.95,26.0]
[1754928747070,10.00776971,181.03,180.98,9.29776971]
[1754928747360,0.71,181.03,180.98,26.0]
[1754928747572,10.00776971,181.03,180.98,35.29776971]
[1754928748037,10.00776971,181.03,180.98,36.01776971]
[1754928748242,5.52364118,181.04,180.98,36.01776971]
[1754928748742,9.29776971,181.03,180.98,10.07776971]
[1754928749049,9.29776971,181.01,180.98,0.06]
[1754928749240,9.29776971,181.02,180.98,0.06]
[1754928749444,9.29776971,181.03,180.98,9.35776971]
[1754928749654,9.29776971,181.04,180.99,0.71]
[1754928749852,9.29776971,181.03,180.99,0.71]
[1754928750166,9.29776971,181.01,180.98,0.06]
[1754928750471,9.29776971,181.0,180.98,0.06]
[1754928750777,9.29776971,180.99,180.98,0.06]
[1754928751067,9.29776971,181.01,180.98,0.06]
[1754928751443,5.52425146,181.02,180.98,10.06776971]
[1754928751766,14.82202117,181.02,180.98,0.06]
[1754928751987,9.29776971,181.01,180.98,0.06]
[1754928752152,5.5239463,181.03,180.98,0.06]
[1754928752359,9.97776971,181.01,180.98,0.06]
[1754928752663,0.68,181.02,180.98,0.06]
[1754928752868,5.52333609,181.05,181.0,9.29776971]
[1754928753069,43.7,181.05,181.02,9.29776971]
[1754928753286,52.99776971,181.05,180.99,0.71]
[1754928753578,0.68,181.04,180.98,0.06]
[1754928753803,9.29776971,181.03,180.99,9.29776971]
[1754928753964,9.29776971,181.0,180.98,0.06]
[1754928754273,15.50265656,181.0,180.98,0.06]
[1754928754449,43.7,181.02,180.99,10.00776971]
[1754928754766,43.7,181.02,180.99,0.71]
[1754928754965,49.22434166,181.02,180.99,10.00776971]
[1754928755165,43.7,181.02,180.99,0.71]
[1754928755369,9.97776971,181.01,180.98,0.06]
[1754928755553,0.68,181.01,180.98,0.06]
[1754928755753,63.03499305,181.02,180.98,9.35776971]
[1754928755754,49.2243644,181.02,180.98,9.35776971]
[1754928756074,43.7,181.02,180.99,9.29776971]
[1754928756268,149.97776971,181.06,181.0,0.71]
[1754928756569,49.22333609,181.05,181.01,9.29776971]
[1754928756953,0.68,181.04,181.0,9.29776971]
[1754928757152,49.22333609,181.05,181.01,10.00776971]
[1754928757355,145.52308516,181.06,181.02,10.00776971]
[1754928757573,145.52308516,181.06,180.98,0.06]
[1754928757574,9.29776971,181.03,180.98,0.06]
[1754928757772,43.68,181.04,180.98,0.06]
[1754928757948,9.29776971,181.0,180.98,0.06]
[1754928758145,5.52516713,180.99,180.98,0.06]
[1754928758343,0.68,181.03,180.98,9.35776971]
[1754928758642,49.20388739,181.04,181.0,9.29776971]
[1754928759349,49.20388739,181.04,181.01,0.71]
[1754928759543,49.20388739,181.04,181.0,9.29776971]
[1754928759780,49.20388739,181.04,181.0,10.00776971]
[1754928759948,49.20388739,181.04,181.0,9.29776971]
[1754928760148,49.88388739,181.04,180.98,0.06]
[1754928760351,9.29776971,180.99,180.98,0.06]
[1754928760775,9.97776971,180.99,180.98,0.06]
[1754928760974,9.29776971,181.0,180.98,0.06]
[1754928761486,9.97776971,180.99,180.98,0.06]
[1754928761662,15.50293684,180.99,180.98,0.06]
[1754928762056,30.60915241,180.99,180.96,0.06]
[1754928762269,9.29776971,180.97,180.96,0.06]
[1754928762667,14.82293684,180.99,180.96,0.06]
[1754928762862,58.48293684,180.99,180.96,0.06]
[1754928763268,49.18516713,180.99,180.96,0.06]
[1754928763463,140.0,181.0,180.96,0.77]
[1754928763659,140.0,181.0,180.97,10.00776971]
[1754928763861,43.66,181.01,180.96,0.06]
[1754928764093,49.18460996,181.01,180.96,0.06]
[1754928764291,49.18460996,181.01,180.97,9.29776971]
[1754928764292,49.86460996,181.01,180.97,9.29776971]
[1754928764493,49.18460996,181.01,180.97,9.29776971]
[1754928764661,49.18460996,181.01,180.96,9.35776971]
[1754928764662,49.86460996,181.01,180.96,9.35776971]
[1754928764862,0.68,181.0,180.96,0.06]
[1754928765062,9.97776971,180.99,180.96,0.06]
[1754928765303,9.29776971,181.0,180.96,0.77]
[1754928765513,49.18460996,181.01,180.97,10.00776971]
[1754928765677,59.16237967,181.01,180.96,9.35776971]
[1754928765992,9.29776971,180.98,180.96,0.06]
[1754928766398,9.29776971,180.99,180.96,0.06]
[1754928766605,9.97776971,180.99,180.96,0.06]
[1754928766767,140.0,180.97,180.96,0.06]
[1754928767707,145.52577775,180.97,180.96,0.06]
[1754928769019,140.0,180.97,180.96,0.06]
[1754928769467,145.52577775,180.97,180.96,0.06]
[1754928769774,140.0,180.97,180.96,0.06]
[1754928769970,145.52577775,180.97,180.96,0.06]
[1754928770175,140.0,180.97,180.96,9.35776971]
[1754928770373,5.52449208,181.02,180.96,10.06776971]
[1754928770595,43.62,181.01,180.96,0.77]
[1754928770775,43.62,181.01,180.99,9.29776971]
[1754928770776,9.35777,181.01,180.99,9.29776971]
[1754928770985,9.35777,181.01,181.0,10.00776971]
[1754928771171,9.35777,181.01,181.0,0.71]
[1754928771375,43.62,181.03,180.99,9.29776971]
[1754928771588,43.62,181.03,181.0,9.29776971]
[1754928771792,49.14402109,181.03,180.97,6.23553793]
[1754928771973,49.14402109,181.03,180.99,9.29776971]
[1754928772173,49.14402109,181.03,181.0,9.29776971]
[1754928772386,43.62,181.03,181.0,9.29776971]
[1754928772693,49.14401196,181.03,180.97,0.71]
[1754928772890,49.82401196,181.03,180.97,0.71]
[1754928773092,49.82401196,181.03,181.0,9.29776971]
[1754928773275,49.82401196,181.03,180.97,0.71]
[1754928773276,140.68,181.02,180.97,0.71]
[1754928773596,140.68,181.02,180.99,9.29776971]
[1754928773792,146.20443155,181.02,180.99,9.29776971]
[1754928773971,146.20443155,181.02,180.97,0.71]
[1754928774172,146.20443155,181.02,180.96,0.06]
[1754928774173,146.20443155,181.02,180.98,9.29776971]
[1754928774389,43.6,181.01,180.99,9.29776971]
[1754928774875,43.6,181.01,180.97,0.71]
[1754928775091,43.6,181.01,180.99,9.29776971]
[1754928775987,5.52486187,181.0,180.99,9.29776971]
[1754928777002,5.52486187,181.0,180.97,0.71]
[1754928777703,44.28,180.99,180.96,0.06]
[1754928778002,14.82324213,180.98,180.96,0.06]
[1754928778305,43.58,180.97,180.96,0.06]
[1754928778598,16.595215,181.03,180.96,0.06]
[1754928778599,5.5233477,181.05,180.97,0.65]
[1754928778802,5.5233477,181.05,181.03,9.29776971]
[1754928778983,43.58,181.04,181.03,9.29776971]
[1754928779180,43.58,181.04,181.02,9.29776971]
[1754928779785,5.5239463,181.03,181.02,9.29776971]
[1754928779980,5.5239463,181.03,181.01,9.29776971]
[1754928780181,5.5239463,181.03,180.97,0.65]
[1754928780182,52.87776971,181.02,180.96,0.06]
[1754928780381,44.23,181.02,180.96,0.06]
[1754928780582,9.29776971,180.97,180.96,0.06]
[1754928780802,52.85776971,180.97,180.96,0.06]
[1754928780980,68.61398528,180.97,180.96,1e-08]
[1754928781897,74.13976303,180.97,180.96,1e-08]
[1754928782305,34.68116337,180.97,180.96,1e-08]
[1754928782612,78.24116337,180.97,180.96,1e-08]
[1754928783403,34.68116337,180.97,180.96,1e-08]
[1754928783706,34.68441089,180.97,180.96,1e-08]
[1754928783892,74.13976303,180.97,180.96,1e-08]
[1754928784086,78.24422212,180.97,180.96,1e-08]
[1754928784294,77.59422212,180.97,180.96,1e-08]
[1754928785587,53.19023684,180.97,180.96,1e-08]
[1754928785889,63.13800655,180.97,180.96,1e-08]
[1754928786099,53.84023684,180.97,180.96,1e-08]
[1754928786401,63.13800655,180.97,180.96,1e-08]
[1754928786601,62.48800655,180.97,180.96,1e-08]
[1754928787313,18.92800655,180.97,180.96,1e-08]
[1754928787504,62.44800655,180.97,180.96,1e-08]
[1754928789021,63.09800655,180.97,180.96,1e-08]
[1754928789600,78.20422212,180.97,180.96,1e-08]
[1754928793441,68.90645241,180.97,180.96,1e-08]
[1754928793645,155.10621557,180.96,180.92,0.06]
[1754928793929,9.29776971,180.93,180.92,0.06]
[1754928794091,56.8822288,180.93,180.92,0.06]
[1754928794294,71.98844437,180.93,180.92,0.06]
[1754928794720,98.63844437,180.93,180.92,1e-08]
[1754928795435,104.16544376,180.93,180.92,1e-08]
[1754928797403,103.51544376,180.93,180.92,1e-08]
[1754928797600,104.16544376,180.93,180.92,1e-08]
[1754928798727,78.16544376,180.93,180.92,1e-08]
[1754928799214,78.17885801,180.93,180.92,1e-08]
[1754928799739,34.04885801,180.93,180.92,1e-08]
[1754928799944,94.2110883,180.93,180.92,1e-08]
[1754928800243,103.50885801,180.93,180.92,1e-08]
[1754928800542,104.15885801,180.93,180.92,1e-08]
[1754928801040,106.37314601,180.93,180.92,1e-08]
[1754928801222,80.37314601,180.93,180.92,1e-08]
[1754928801631,15.10621557,180.89,180.88,1e-08]
[1754928801840,67.84398528,180.89,180.88,1e-08]
[1754928802015,68.49398528,180.89,180.88,1e-08]
[1754928802537,67.84398528,180.89,180.88,1e-08]
[1754928803338,73.37220685,180.89,180.88,1e-08]
[1754928803544,58.26599128,180.89,180.88,1e-08]
[1754928803845,43.44,180.89,180.88,0.65000001]
[1754928804144,52.71777,180.9,180.88,0.65000001]
[1754928804346,52.71776971,180.9,180.89,0.65]
[1754928804544,58.52621557,180.9,180.88,1e-08]
[1754928804734,43.42,180.9,180.89,0.65]
[1754928805445,5.52822157,180.89,180.88,1e-08]
[1754928805951,14.82599128,180.89,180.88,1e-08]
[1754928806137,5.52822157,180.89,180.88,1e-08]
[1754928806329,14.82599128,180.89,180.88,0.65000001]
[1754928806534,5.52822157,180.89,180.88,0.65000001]
[1754928807752,5.52761041,180.91,180.88,0.65000001]
[1754928807955,15.10621557,180.94,180.9,9.29776971]
[1754928808247,43.4,180.93,180.91,0.65]
[1754928808449,43.4,180.93,180.9,9.29776971]
[1754928808450,43.4,180.93,180.92,0.69]
[1754928808839,48.92669393,180.94,180.92,0.69]
[1754928809039,48.92669393,180.94,180.93,0.69]
[1754928809531,43.38,180.94,180.93,0.69]
[1754928810347,52.67776971,180.94,180.9,0.69]
[1754928810552,52.67776971,180.94,180.91,0.69]
[1754928811152,43.38,180.94,180.92,0.69]
[1754928811651,5.52669393,180.94,180.93,0.69]
[1754928812267,48.93642925,180.95,180.93,0.69]
[1754928812640,48.93642925,180.95,180.94,0.69]
[1754928813265,0.03,180.95,180.94,9.98776971]
[1754928815661,0.03,180.95,180.94,15.51446364]
[1754928815977,0.03,180.98,180.94,15.51446364]
[1754928816139,0.03,181.0,180.97,35.29776971]
[1754928816336,0.03,181.0,180.99,9.29776971]
[1754928816753,0.03,181.0,180.99,9.98776971]
[1754928817642,0.03,181.0,180.99,15.51293684]
[1754928818236,0.03,181.0,180.99,41.51293684]
[1754928818436,0.03,181.08,181.02,26.0]
[1754928818637,0.03,181.08,181.07,9.29776971]
[1754928819068,0.03,181.08,181.07,9.98776971]
[1754928819554,5.55242102,181.08,181.06,9.29776971]
[1754928819756,5.55242102,181.08,181.05,9.29776971]
[1754928819950,15.53019073,181.08,181.03,9.29776971]
[1754928820168,5.55242102,181.08,181.05,9.29776971]
[1754928820348,5.55242102,181.08,181.05,9.98776971]
[1754928821248,5.55242102,181.08,181.06,9.98776971]
[1754928821450,5.55242102,181.08,181.05,9.29776971]
[1754928821850,0.03,181.08,181.04,9.29776971]
[1754928822250,0.03,181.08,181.05,9.98776971]
[1754928822455,0.03,181.08,181.05,0.69]
[1754928822972,0.03,181.08,181.05,9.29776971]
[1754928823269,0.03,181.08,181.06,9.98776971]
[1754928823641,0.03,181.08,181.07,9.98776971]
[1754928825463,10.00776971,181.08,181.02,9.98776971]
[1754928825672,0.03,181.08,181.05,9.29776971]
[1754928825971,0.03,181.08,181.06,0.69]
[1754928826144,0.03,181.08,181.06,9.98776971]
[1754928826347,0.03,181.08,181.07,9.98776971]
[1754928827073,0.03,181.08,181.02,5.52419955]
[1754928827368,0.03,181.08,181.05,9.98776971]
[1754928827578,9.32776971,181.08,181.03,35.29776971]
[1754928827792,0.03,181.08,181.04,0.69]
[1754928827966,0.03,181.08,181.04,9.29776971]
[1754928828152,140.0,181.07,181.05,0.69]
[1754928828351,9.29776971,181.06,181.03,0.69]
[1754928828776,14.82058735,181.07,181.03,0.69]
[1754928828952,5.52281764,181.07,181.04,0.69]
[1754928829157,5.52281764,181.07,181.05,0.69]
[1754928829852,0.03,181.08,181.05,9.98776971]
[1754928830069,0.03,181.08,181.06,9.98776971]
[1754928830458,0.03,181.08,181.06,0.69]
[1754928830974,0.03,181.08,181.06,9.29776971]
[1754928831145,0.03,181.08,181.07,9.98776971]
[1754928831547,0.03,181.08,181.07,0.69]
[1754928831766,0.03,181.08,181.07,9.98776971]
[1754928833156,0.03,181.08,181.07,15.51049572]
[1754928833364,0.03,181.08,181.07,9.98776971]
[1754928834173,0.03,181.08,181.07,15.51049572]
[1754928834372,0.03,181.08,181.07,9.98776971]
[1754928834755,0.03,181.08,181.07,15.51049572]
[1754928835483,0.03,181.08,181.07,9.98776971]
[1754928835857,0.03,181.08,181.07,15.51049572]
[1754928837356,0.03,181.08,181.07,9.98776971]
[1754928837866,0.03,181.08,181.05,26.0]
[1754928838080,0.68,181.07,181.03,9.29776971]
[1754928838256,0.68,181.07,181.03,35.29776971]
[1754928838457,0.03,181.08,181.04,10.00776971]
[1754928838687,0.03,181.08,181.05,9.29776971]
[1754928838983,0.03,181.08,181.06,9.29776971]
[1754928839965,5.55181115,181.1,181.08,0.009313]
[1754928840684,9.98776971,181.09,181.08,0.009313]
[1754928841187,15.50988578,181.09,181.08,0.009313]
[1754928841591,6.21211607,181.09,181.08,0.009313]
[1754928841968,30.61610135,181.09,181.08,0.009313]
[1754928842602,65.91387106,181.09,181.08,0.009313]
[1754928843395,15.10621557,181.08,180.97,0.06]
[1754928843583,9.29776971,181.01,180.97,0.06]
[1754928843785,9.29776971,181.0,180.97,0.06]
[1754928843972,9.29776971,180.98,180.97,0.06]
[1754928844170,9.29776971,180.99,180.97,0.06]
[1754928845198,15.10621557,181.01,180.97,0.06]
[1754928845397,9.29776971,180.99,180.97,0.06]
[1754928846781,5.52547242,180.98,180.97,0.06]
[1754928847769,15.51324213,180.98,180.97,0.06]
[1754928847988,5.52547242,180.98,180.97,0.06]
[1754928849288,14.82324213,180.98,180.97,0.06]
[1754928849487,5.52547242,180.98,180.97,0.06]
[1754928849804,5.52522779,180.99,180.97,0.77]
[1754928850297,0.69,181.06,180.98,10.00776971]
[1754928850504,43.02,181.05,181.02,9.29776971]
[1754928850687,5.52311268,181.06,181.03,0.71]
[1754928850890,15.10621557,181.09,181.04,0.71]
[1754928851200,48.54211607,181.09,181.04,0.71]
[1754928851402,43.02,181.09,181.08,9.29776971]
[1754928851733,0.03,181.1,181.08,10.00776971]
[1754928852009,0.03,181.1,181.09,10.00776971]
[1754928852170,0.03,181.1,181.09,0.71]
[1754928852599,0.03,181.1,181.09,36.00776971]
[1754928852802,0.03,181.11,181.1,31.52181115]
[1754928853020,0.03,181.11,181.1,41.52958086]
[1754928853303,0.03,181.12,181.1,41.52958086]
[1754928853481,0.03,181.12,181.11,10.00776971]
[1754928853695,0.03,181.12,181.11,26.71]
[1754928854078,0.03,181.12,181.11,36.00776971]
[1754928854277,0.03,181.12,181.11,35.29776971]
[1754928854914,0.03,181.12,181.11,10.00776971]
[1754928855118,0.03,181.12,181.09,35.29776971]
[1754928855394,0.03,181.12,181.07,9.29776971]
[1754928855573,8.82776971,181.13,181.08,9.29776971]
[1754928855773,9.29776971,181.13,181.08,26.71]
[1754928855973,9.29776971,181.12,181.07,9.29776971]
[1754928856192,9.29776971,181.1,181.08,0.06]
[1754928856391,0.03,181.1,181.08,0.56]
[1754928857516,10.01776971,181.1,181.08,0.56]
[1754928857691,0.72,181.1,181.08,0.56]
[1754928857898,0.03,181.1,181.08,0.56]
[1754928858106,140.0,181.09,181.08,0.56]
[1754928858613,140.0,181.09,181.08,0.06]
[1754928858788,145.52211607,181.09,181.08,0.06]
[1754928859112,140.0,181.09,181.08,0.06]
[1754928859289,140.0,181.09,181.08,9.35776971]
[1754928859694,140.0,181.09,181.08,0.06]
[1754928860119,145.52211607,181.09,181.08,0.06]
[1754928861826,140.0,181.09,181.08,9.35776971]
[1754928862334,0.03,181.1,181.08,10.06776971]
[1754928862617,0.03,181.1,181.09,10.00776971]
[1754928863826,0.03,181.1,181.08,0.06]
[1754928864314,0.03,181.1,181.09,9.29776971]
[1754928864536,0.03,181.1,181.08,0.06]
[1754928864911,0.03,181.1,181.08,9.35776971]
[1754928865117,0.03,181.1,181.09,9.29776971]
[1754928865521,0.03,181.1,181.09,10.00776971]
[1754928865819,0.03,181.1,181.09,9.29776971]
[1754928867021,0.03,181.1,181.08,0.06]
[1754928867397,0.03,181.1,181.08,9.35776971]
[1754928868616,0.03,181.1,181.09,9.29776971]
[1754928868813,0.03,181.1,181.08,10.02776971]
[1754928869111,0.03,181.1,181.09,9.29776971]
[1754928869315,0.03,181.1,181.08,0.73]
[1754928869506,0.03,181.1,181.09,9.29776971]
[1754928869707,0.03,181.1,181.08,0.73]
[1754928869921,0.03,181.1,181.09,9.29776971]
[1754928870216,0.03,181.1,181.08,0.06]
[1754928870417,0.03,181.1,181.09,9.29776971]
[1754928871118,0.03,181.1,181.08,0.06]
[1754928871732,0.72,181.1,181.08,0.06]
[1754928872042,5.52211607,181.09,181.08,0.06]
[1754928873420,15.50988578,181.09,181.08,0.06]
[1754928873732,30.61610135,181.09,181.08,1e-08]
[1754928874308,15.10621557,181.08,181.06,0.06]
[1754928874509,15.10621557,181.06,181.04,0.06]
[1754928874866,24.40398528,181.05,181.04,0.06]
[1754928875142,25.09398528,181.05,181.04,0.06]
[1754928876221,30.61732137,181.05,181.04,0.06]
[1754928876525,26.0,181.03,181.02,1e-08]
[1754928876729,78.19776971,181.03,181.02,1e-08]
[1754928876928,78.88776971,181.03,181.02,1e-08]
[1754928877535,93.99398528,181.03,181.02,1e-08]
[1754928877738,93.97398528,181.03,181.02,1e-08]
[1754928878233,14.82171601,181.03,181.02,1e-08]
[1754928878443,48.4039463,181.03,181.02,1e-08]
[1754928879160,5.5234123,181.05,181.02,1e-08]
[1754928879335,42.88,181.04,181.02,9.96776972]
[1754928879648,42.88,181.04,181.02,0.67000001]
[1754928879814,52.17776971,181.04,181.02,1e-08]
[1754928880015,149.29776971,181.03,181.02,1e-08]
[1754928880241,170.61793158,181.03,181.02,1e-08]
[1754928880750,188.4039463,181.03,181.02,1e-08]
[1754928881449,197.70171601,181.03,181.02,1e-08]
[1754928881660,188.4039463,181.03,181.02,1e-08]
[1754928881952,188.4039463,181.03,181.02,0.67000001]
[1754928882120,42.88,181.05,181.02,9.96776972]
[1754928882446,48.40360804,181.05,181.03,0.67]
[1754928882638,42.88,181.05,181.04,0.67]
[1754928882840,48.40333609,181.05,181.04,0.67]
[1754928883234,48.40333609,181.05,181.02,9.96776972]
[1754928883428,48.40333609,181.05,181.03,0.67]
[1754928884031,48.40333609,181.05,181.02,1e-08]
[1754928884332,57.7011058,181.05,181.02,1e-08]
[1754928884534,48.40333609,181.05,181.02,1e-08]
[1754928884716,48.40333609,181.05,181.02,9.29776972]
[1754928884921,57.7011058,181.05,181.02,1e-08]
[1754928885123,197.7011058,181.05,181.02,1e-08]
[1754928885442,188.40333609,181.05,181.02,1e-08]
[1754928885745,188.38333609,181.05,181.02,1e-08]
[1754928885948,9.29776971,181.03,181.02,1e-08]
[1754928886120,48.3839463,181.03,181.02,1e-08]
[1754928888623,49.0739463,181.03,181.02,1e-08]
[1754928888846,73.47793158,181.03,181.02,1e-08]
[1754928892356,9.29776971,180.97,180.96,1e-08]
[1754928892542,57.64354746,180.97,180.96,1e-08]
[1754928892745,58.33354746,180.97,180.96,1e-08]
[1754928893131,57.64354746,180.97,180.96,1e-08]
[1754928896459,14.82354746,180.97,180.96,1e-08]
[1754928896750,52.11776971,180.97,180.96,1e-08]
[1754928897156,42.82,180.97,180.96,1e-08]
[1754928897662,52.11776971,180.97,180.96,1e-08]
[1754928897826,149.29776971,180.98,180.96,0.67000001]
[1754928898174,42.8,180.97,180.96,0.67000001]
[1754928898325,140.0,180.98,180.97,0.66]
[1754928898530,9.29776971,181.02,180.97,9.95776971]
[1754928898729,42.8,181.01,180.98,0.66]
[1754928898956,42.8,181.01,180.97,9.29776971]
[1754928898957,42.8,181.01,180.99,0.66]
[1754928900234,15.10621557,181.06,181.0,0.66]
[1754928900462,18.62553971,181.07,181.02,9.29776971]
[1754928900636,42.8,181.06,181.05,9.29776971]
[1754928900833,42.8,181.06,181.05,9.95776971]
[1754928901033,42.8,181.06,181.03,9.29776971]
[1754928901260,42.8,181.06,180.98,0.66]
[1754928901261,9.29776971,181.04,180.98,0.66]
[1754928901462,9.29776971,180.99,180.96,0.66000001]
[1754928901639,58.56621557,181.03,180.96,1e-08]
[1754928901640,42.78,180.98,180.96,1e-08]
[1754928901832,42.78,180.97,180.96,1e-08]
[1754928902032,9.29776971,180.97,180.96,1e-08]
[1754928902233,52.07776971,180.98,180.96,1e-08]
[1754928902430,140.0,181.02,180.96,9.95776972]
[1754928902665,0.03,181.07,181.01,9.29776971]
[1754928902843,0.03,181.07,181.06,9.29776971]
[1754928903162,0.03,181.07,181.06,9.95776971]
[1754928903459,0.03,181.1,181.06,9.95776971]
[1754928903654,0.03,181.1,181.09,9.29776971]
[1754928904259,0.03,181.1,181.06,0.66]
[1754928904460,9.29776971,181.09,181.04,35.95776971]
[1754928904636,9.29776971,181.08,181.04,0.66]
[1754928904832,9.29776971,181.05,181.01,0.66]
[1754928905149,9.29776971,181.03,180.99,0.66]
[1754928905341,9.29776971,181.02,180.99,0.66]
[1754928905543,9.29776971,181.0,180.96,1e-08]
[1754928905743,140.0,180.99,180.96,9.95776972]
[1754928905943,140.0,180.99,180.97,0.66]
[1754928906258,140.0,180.99,180.96,1e-08]
[1754928906442,154.82295198,180.99,180.96,1e-08]
[1754928906645,9.29776971,180.97,180.96,1e-08]
[1754928906847,24.40398528,180.97,180.96,1e-08]
[1754928907057,15.76621557,180.97,180.96,1e-08]
[1754928907556,25.06398528,180.97,180.96,1e-08]
[1754928907874,41.10621557,180.93,180.92,0.06]
[1754928908168,97.94709633,180.93,180.92,1e-08]
[1754928908367,103.47409572,180.93,180.92,1e-08]
[1754928908569,104.13409572,180.93,180.92,1e-08]
[1754928910953,108.23941885,180.93,180.92,1e-08]
[1754928911346,51.39853809,180.93,180.92,1e-08]
[1754928911542,108.23941885,180.93,180.92,1e-08]
[1754928911753,108.2374607,180.93,180.92,1e-08]
[1754928912164,93.13124513,180.93,180.92,1e-08]
[1754928912370,65.49589523,180.93,180.92,1e-08]
[1754928912681,108.23589523,180.93,180.92,1e-08]
[1754928912970,108.23600923,180.93,180.92,1e-08]
[1754928913754,104.13409572,180.93,180.92,1e-08]
[1754928914177,61.39409572,180.93,180.92,1e-08]
[1754928914354,104.13409572,180.93,180.92,1e-08]
[1754928915248,108.23484163,180.93,180.92,1e-08]
[1754928915455,65.49356458,180.93,180.92,1e-08]
[1754928915650,15.10621557,180.96,180.92,1e-08]
[1754928915861,29.20709633,180.94,180.92,1e-08]
[1754928916062,57.84621557,180.93,180.92,0.66000001]
[1754928916276,42.74,180.93,180.92,0.66000001]
[1754928917484,42.74,180.93,180.92,1e-08]
[1754928917690,42.72,180.93,180.92,0.66000001]
[1754928917988,42.72,180.93,180.92,14.76088077]
[1754928918190,42.72,180.93,180.92,0.66000001]
[1754928918485,56.82088076,180.93,180.92,1e-08]
[1754928918788,42.72,180.93,180.92,1e-08]
[1754928918977,42.72,180.93,180.92,0.66000001]
[1754928919865,56.82088076,180.93,180.92,1e-08]
[1754928920065,14.10088076,180.93,180.92,1e-08]
[1754928920296,56.82088076,180.93,180.92,1e-08]
[1754928920500,62.34788015,180.93,180.92,1e-08]
[1754928920992,78.11409572,180.93,180.92,1e-08]
[1754928922074,42.7,180.93,180.92,1e-08]
[1754928922297,62.32788015,180.93,180.92,1e-08]
[1754928922681,14.10088076,180.97,180.92,0.66000001]
[1754928922864,0.03,180.99,180.92,0.66000001]
[1754928922865,56.80088076,180.96,180.92,0.66000001]
[1754928923065,42.7,180.95,180.93,0.66]
[1754928923264,42.7,180.94,180.92,14.10088077]
[1754928923792,140.0,180.96,180.93,14.76088076]
[1754928923974,140.0,180.96,180.95,14.10088076]
[1754928924286,140.0,180.96,180.95,14.76088076]
[1754928924492,140.0,180.96,180.95,0.66]
[1754928924678,140.0,180.96,180.93,14.10088076]
[1754928924882,42.73,180.99,180.95,14.76088076]
[1754928925081,42.73,180.99,180.96,14.76088076]
[1754928925395,42.73,180.99,180.97,0.66]